[Event "Gibraltar Masters 18th"]
[Site "Gibraltar"]
[Date "2020.01.28"]
[Round "8.37"]
[White "Panjwani, Raja"]
[Black "Kaidanov, Gregory"]
[Result "1-0"]
[ECO "D46"]
[WhiteElo "2444"]
[BlackElo "2546"]
[PlyCount "80"]
[EventDate "2020.01.21"]
[EventType "swiss"]
[EventRounds "10"]
[EventCountry "GGB"]
[SourceTitle "BritBase"]
[Source "John Saunders"]
[SourceDate "2021.06.05"]
[SourceVersion "1"]
[SourceVersionDate "2021.06.05"]
[SourceQuality "1"]
[TimeControl "40/100:0"]
[WhiteClock "0:06:18"]
[BlackClock "0:50:30"]

1. d4 {[%emt 0:00:00]} d5 {[%emt 0:00:00]} 2. c4 {[%emt 0:00:00]} e6 {[%emt 0:
00:00]} 3. Nc3 {[%emt 0:00:00]} c6 {[%emt 0:00:00]} 4. e3 {[%emt 0:00:00]} Nf6
{[%emt 0:00:00]} 5. Nf3 {[%emt 0:00:00]} Nbd7 {[%emt 0:00:00]} 6. Qc2 {[%emt 0:
00:00]} b6 {[%emt 0:00:00]} 7. b3 {[%emt 0:00:00]} Bb7 {[%emt 0:00:00]} 8. Bb2
{[%emt 0:00:00]} Be7 {[%emt 0:00:00]} 9. Bd3 {[%emt 0:00:00]} O-O {[%emt 0:00:
00]} 10. O-O {[%emt 0:00:00]} h6 {[%emt 0:00:00]} 11. Rad1 {[%emt 0:00:00]} Qc7
{[%emt 0:00:00]} 12. h3 {[%emt 0:00:00]} Rad8 {[%emt 0:00:00]} 13. Qe2 {
[%emt 0:00:00]} Rfe8 {[%emt 0:00:00]} 14. Bb1 {[%emt 0:00:00]} Bd6 {[%emt 0:00:
00]} 15. e4 {[%emt 0:00:00]} dxe4 {[%emt 0:00:00]} 16. Nxe4 {[%emt 0:00:00]}
Nxe4 {[%emt 0:00:00]} 17. Qxe4 {[%emt 0:00:00]} Nf8 {[%emt 0:00:00]} 18. Qe2 {
[%emt 0:00:00]} c5 {[%emt 0:00:00]} 19. dxc5 {[%emt 0:00:00]} Bxc5 {[%emt 0:00:
00]} 20. Be4 {[%emt 0:00:00]} Bxe4 {[%emt 0:00:00]} 21. Qxe4 {[%emt 0:00:00]}
Ng6 {[%emt 0:00:00]} 22. Ne5 {[%emt 0:00:00]} Nxe5 {[%emt 0:00:00]} 23. Bxe5 {
[%emt 0:00:00]} Qe7 {[%emt 0:00:00]} 24. g3 {[%emt 0:00:00]} Rxd1 {[%emt 0:00:
00]} 25. Rxd1 {[%emt 0:00:00]} Rd8 {[%emt 0:00:00]} 26. Qg4 {[%emt 0:00:00]}
Rxd1+ {[%emt 0:00:00]} 27. Qxd1 {[%emt 0:00:00]} Qg5 {[%emt 0:00:00]} 28. Qe2 {
[%emt 0:00:00]} f6 {[%emt 0:00:00]} 29. Bd6 {[%emt 0:00:00]} Qf5 {[%emt 0:00:
00]} 30. Bxc5 {[%emt 0:00:00]} bxc5 {[%emt 0:00:00]} 31. g4 {[%emt 0:00:00]}
Qb1+ {[%emt 0:00:00]} 32. Kg2 {[%emt 0:00:00]} e5 {[%emt 0:00:00]} 33. Qe3 {
[%emt 0:00:00]} Qxa2 {[%emt 0:00:00]} 34. Qxc5 {[%emt 0:00:00]} Qxb3 {[%emt 0:
00:00]} 35. Qc8+ {[%emt 0:00:00]} Kh7 {[%emt 0:00:00]} 36. c5 {[%emt 0:00:00]}
Qd5+ {[%emt 0:00:00]} 37. Kh2 {[%emt 0:00:00]} a5 {[%emt 0:00:00]} 38. c6 {
[%emt 0:00:00]} Qc5 {[%emt 0:00:51]} 39. Kg1 {[%emt 0:00:00]} Qc1+ {[%emt 0:00:
17]} 40. Kg2 {[%emt 0:00:00]} Qc4 {[%emt 0:00:00]} 1-0

[Event "Gibraltar Masters 18th"]
[Site "Gibraltar"]
[Date "2020.01.28"]
[Round "8.38"]
[White "Muzychuk, Anna"]
[Black "Ladron De Guevara Pinto, Paolo"]
[Result "1-0"]
[ECO "B06"]
[WhiteElo "2539"]
[BlackElo "2445"]
[PlyCount "53"]
[EventDate "2020.01.21"]
[EventType "swiss"]
[EventRounds "10"]
[EventCountry "GGB"]
[SourceTitle "BritBase"]
[Source "John Saunders"]
[SourceDate "2021.06.05"]
[SourceVersion "1"]
[SourceVersionDate "2021.06.05"]
[SourceQuality "1"]
[TimeControl "40/100:0"]
[WhiteClock "0:22:31"]
[BlackClock "0:01:20"]

1. e4 {[%emt 0:00:00]} g6 {[%emt 0:00:00]} 2. d4 {[%emt 0:00:00]} Bg7 {[%emt 0:
00:00]} 3. Nc3 {[%emt 0:00:00]} d6 {[%emt 0:00:00]} 4. f4 {[%emt 0:00:00]} a6 {
[%emt 0:00:00]} 5. Nf3 {[%emt 0:00:00]} b5 {[%emt 0:00:00]} 6. Bd3 {[%emt 0:00:
00]} Nd7 {[%emt 0:00:00]} 7. a4 {[%emt 0:00:00]} b4 {[%emt 0:00:00]} 8. Ne2 {
[%emt 0:00:00]} c5 {[%emt 0:00:00]} 9. c3 {[%emt 0:00:00]} Nh6 {[%emt 0:00:00]}
10. O-O {[%emt 0:00:00]} O-O {[%emt 0:00:00]} 11. f5 {[%emt 0:00:00]} gxf5 {
[%emt 0:00:00]} 12. exf5 {[%emt 0:00:00]} Nf6 {[%emt 0:00:00]} 13. Ng3 {
[%emt 0:00:00]} cxd4 {[%emt 0:00:00]} 14. cxd4 {[%emt 0:00:00]} Kh8 {[%emt 0:
00:00]} 15. a5 {[%emt 0:00:00]} Bb7 {[%emt 0:00:00]} 16. Bd2 {[%emt 0:00:00]}
e5 {[%emt 0:00:00]} 17. fxe6 {[%emt 0:00:00]} fxe6 {[%emt 0:00:00]} 18. Qe2 {
[%emt 0:00:00]} Nfg4 {[%emt 0:00:00]} 19. Be4 {[%emt 0:00:00]} Bd5 {[%emt 0:00:
00]} 20. Bxd5 {[%emt 0:00:00]} exd5 {[%emt 0:00:00]} 21. Qe6 {[%emt 0:00:00]}
Rb8 {[%emt 0:00:00]} 22. Rae1 {[%emt 0:00:00]} Nf6 {[%emt 0:00:00]} 23. Bxh6 {
[%emt 0:00:00]} Bxh6 {[%emt 0:00:00]} 24. Nf5 {[%emt 0:00:00]} Bg7 {[%emt 0:00:
00]} 25. Ng5 {[%emt 0:00:00]} Qe8 {[%emt 0:00:32]} 26. Nxg7 {[%emt 0:00:00]}
Kxg7 {[%emt 0:00:00]} 27. Rxf6 {[%emt 0:00:00]} 1-0

[Event "Gibraltar Masters 18th"]
[Site "Gibraltar"]
[Date "2020.01.28"]
[Round "8.39"]
[White "Baron, Tal"]
[Black "Murzin, Volodar"]
[Result "1-0"]
[ECO "D15"]
[WhiteElo "2529"]
[BlackElo "2442"]
[PlyCount "85"]
[EventDate "2020.01.21"]
[EventType "swiss"]
[EventRounds "10"]
[EventCountry "GGB"]
[SourceTitle "BritBase"]
[Source "John Saunders"]
[SourceDate "2021.06.05"]
[SourceVersion "1"]
[SourceVersionDate "2021.06.05"]
[SourceQuality "1"]
[TimeControl "40/100:0"]
[WhiteClock "0:07:34"]
[BlackClock "0:03:35"]

1. d4 {[%emt 0:00:00]} d5 {[%emt 0:00:00]} 2. c4 {[%emt 0:00:00]} c6 {[%emt 0:
00:00]} 3. Nf3 {[%emt 0:00:00]} Nf6 {[%emt 0:00:00]} 4. Nc3 {[%emt 0:00:00]} a6
{[%emt 0:00:00]} 5. Qc2 {[%emt 0:00:00]} g6 {[%emt 0:00:00]} 6. cxd5 {[%emt 0:
00:00]} cxd5 {[%emt 0:00:00]} 7. Bg5 {[%emt 0:00:00]} Nc6 {[%emt 0:00:00]} 8.
e3 {[%emt 0:00:00]} Bg7 {[%emt 0:00:00]} 9. Bd3 {[%emt 0:00:00]} O-O {[%emt 0:
00:00]} 10. a3 {[%emt 0:00:00]} b6 {[%emt 0:00:00]} 11. O-O {[%emt 0:00:00]}
Bb7 {[%emt 0:00:00]} 12. Rfc1 {[%emt 0:00:00]} Na5 {[%emt 0:00:00]} 13. Bxf6 {
[%emt 0:12:21]} Bxf6 {[%emt 0:00:00]} 14. b4 {[%emt 0:00:00]} Nc6 {[%emt 0:00:
00]} 15. Rab1 {[%emt 0:00:00]} e6 {[%emt 0:00:00]} 16. Na4 {[%emt 0:00:00]} Be7
{[%emt 0:00:00]} 17. h3 {[%emt 0:00:00]} Bd6 {[%emt 0:00:00]} 18. Nc5 {[%emt 0:
00:00]} Bxc5 {[%emt 0:00:00]} 19. dxc5 {[%emt 0:00:00]} bxc5 {[%emt 0:00:00]}
20. bxc5 {[%emt 0:00:00]} Qc7 {[%emt 0:00:00]} 21. Rb6 {[%emt 0:00:00]} Ra7 {
[%emt 0:00:00]} 22. h4 {[%emt 0:00:00]} e5 {[%emt 0:00:00]} 23. e4 {[%emt 0:00:
00]} Ne7 {[%emt 0:00:00]} 24. h5 {[%emt 0:00:00]} Bc6 {[%emt 0:00:00]} 25. h6 {
[%emt 0:00:00]} Kh8 {[%emt 0:00:00]} 26. exd5 {[%emt 0:00:00]} Bxd5 {[%emt 0:
00:00]} 27. Be4 {[%emt 0:00:00]} f6 {[%emt 0:00:00]} 28. Nd2 {[%emt 0:00:00]}
Bg8 {[%emt 0:00:00]} 29. Qb2 {[%emt 0:00:00]} Nd5 {[%emt 0:00:00]} 30. Rc2 {
[%emt 0:00:00]} Qe7 {[%emt 0:00:00]} 31. Rd6 {[%emt 0:00:00]} Nf4 {[%emt 0:00:
00]} 32. Nf3 {[%emt 0:00:00]} Rc7 {[%emt 0:00:00]} 33. Rxa6 {[%emt 0:00:00]}
Ne6 {[%emt 0:00:00]} 34. Qb4 {[%emt 0:00:00]} g5 {[%emt 0:00:00]} 35. c6 {
[%emt 0:00:00]} Qxb4 {[%emt 0:00:00]} 36. axb4 {[%emt 0:00:00]} Rb8 {[%emt 0:
00:00]} 37. Rb2 {[%emt 0:00:00]} Nc5 {[%emt 0:00:00]} 38. bxc5 {[%emt 0:00:00]}
Rxb2 {[%emt 0:00:00]} 39. Ra8 {[%emt 0:00:00]} Ra2 {[%emt 0:00:00]} 40. Rd8 {
[%emt 0:00:00]} Raa7 {[%emt 0:00:00]} 41. Bd5 {[%emt 0:00:00]} Rf7 {[%emt 0:00:
00]} 42. Nd2 {[%emt 0:00:00]} e4 {[%emt 0:00:00]} 43. Nxe4 {[%emt 0:00:00]} 1-0

[Event "Gibraltar Masters 18th"]
[Site "Gibraltar"]
[Date "2020.01.28"]
[Round "8.40"]
[White "Chen, Qi B"]
[Black "Beliavsky, Alexander G"]
[Result "1/2-1/2"]
[ECO "C93"]
[WhiteElo "2432"]
[BlackElo "2529"]
[PlyCount "86"]
[EventDate "2020.01.21"]
[EventType "swiss"]
[EventRounds "10"]
[EventCountry "GGB"]
[SourceTitle "BritBase"]
[Source "John Saunders"]
[SourceDate "2021.06.05"]
[SourceVersion "1"]
[SourceVersionDate "2021.06.05"]
[SourceQuality "1"]
[TimeControl "40/100:0"]
[WhiteClock "0:48:19"]
[BlackClock "0:50:02"]

1. e4 {[%emt 0:00:00]} e5 {[%emt 0:00:00]} 2. Nf3 {[%emt 0:00:00]} Nc6 {
[%emt 0:00:00]} 3. Bb5 {[%emt 0:00:00]} a6 {[%emt 0:00:00]} 4. Ba4 {[%emt 0:00:
00]} Nf6 {[%emt 0:00:00]} 5. O-O {[%emt 0:00:00]} Be7 {[%emt 0:00:00]} 6. Re1 {
[%emt 0:00:00]} b5 {[%emt 0:00:00]} 7. Bb3 {[%emt 0:00:00]} d6 {[%emt 0:00:00]}
8. c3 {[%emt 0:00:00]} O-O {[%emt 0:00:00]} 9. h3 {[%emt 0:00:00]} Bb7 {
[%emt 0:00:00]} 10. d4 {[%emt 0:00:00]} Re8 {[%emt 0:00:00]} 11. Nbd2 {[%emt 0:
00:00]} Bf8 {[%emt 0:00:00]} 12. a3 {[%emt 0:00:00]} h6 {[%emt 0:00:00]} 13.
Bc2 {[%emt 0:00:00]} Nb8 {[%emt 0:00:00]} 14. b3 {[%emt 0:00:00]} Nbd7 {
[%emt 0:00:00]} 15. Bb2 {[%emt 0:00:00]} c6 {[%emt 0:00:00]} 16. a4 {[%emt 0:
00:00]} Qc7 {[%emt 0:00:00]} 17. Bd3 {[%emt 0:00:00]} d5 {[%emt 0:00:00]} 18.
dxe5 {[%emt 0:00:00]} Nxe5 {[%emt 0:00:00]} 19. Nxe5 {[%emt 0:00:00]} Qxe5 {
[%emt 0:00:00]} 20. Qc2 {[%emt 0:00:00]} Bd6 {[%emt 0:00:00]} 21. Nf3 {[%emt 0:
00:00]} Qh5 {[%emt 0:00:00]} 22. e5 {[%emt 0:00:00]} Bxe5 {[%emt 0:00:00]} 23.
Nxe5 {[%emt 0:00:00]} Rxe5 {[%emt 0:00:00]} 24. Rxe5 {[%emt 0:00:00]} Qxe5 {
[%emt 0:00:00]} 25. c4 {[%emt 0:00:00]} d4 {[%emt 0:00:00]} 26. axb5 {[%emt 0:
00:00]} cxb5 {[%emt 0:00:00]} 27. cxb5 {[%emt 0:00:00]} Qd5 {[%emt 0:00:00]}
28. Bf1 {[%emt 0:00:00]} Rc8 {[%emt 0:00:00]} 29. Qd3 {[%emt 0:00:00]} axb5 {
[%emt 0:00:00]} 30. Rd1 {[%emt 0:00:00]} b4 {[%emt 0:00:00]} 31. Bxd4 {[%emt 0:
00:00]} Ne4 {[%emt 0:00:00]} 32. Bb6 {[%emt 0:00:00]} Qe6 {[%emt 0:00:00]} 33.
Bd4 {[%emt 0:00:00]} Bd5 {[%emt 0:00:00]} 34. Re1 {[%emt 0:00:00]} Qc6 {
[%emt 0:00:00]} 35. Qe3 {[%emt 0:00:00]} Ng5 {[%emt 0:00:00]} 36. Qg3 {[%emt 0:
00:00]} Re8 {[%emt 0:00:00]} 37. Rxe8+ {[%emt 0:00:00]} Qxe8 {[%emt 0:00:00]}
38. Be3 {[%emt 0:00:00]} Ne4 {[%emt 0:00:00]} 39. Qc7 {[%emt 0:00:00]} Bxb3 {
[%emt 0:00:00]} 40. Qb7 {[%emt 0:00:00]} Ng5 {[%emt 0:00:16]} 41. Qxb4 {
[%emt 0:00:06]} Bd5 {[%emt 0:01:47]} 42. Qg4 {[%emt 0:01:56]} Qe4 {[%emt 0:00:
00]} 43. Bxg5 {[%emt 0:00:00]} Qxg4 {[%emt 0:00:08]} 1/2-1/2

[Event "Gibraltar Masters 18th"]
[Site "Gibraltar"]
[Date "2020.01.28"]
[Round "8.41"]
[White "Kotronias, Vasilios"]
[Black "Rakotomaharo, Fy Antenaina"]
[Result "1-0"]
[ECO "B90"]
[WhiteElo "2526"]
[BlackElo "2433"]
[PlyCount "49"]
[EventDate "2020.01.21"]
[EventType "swiss"]
[EventRounds "10"]
[EventCountry "GGB"]
[SourceTitle "BritBase"]
[Source "John Saunders"]
[SourceDate "2021.06.05"]
[SourceVersion "1"]
[SourceVersionDate "2021.06.05"]
[SourceQuality "1"]
[TimeControl "40/100:0"]
[WhiteClock "0:40:08"]
[BlackClock "0:13:19"]

1. e4 {[%emt 0:00:00]} c5 {[%emt 0:00:00]} 2. Nf3 {[%emt 0:00:00]} d6 {[%emt 0:
00:00]} 3. d4 {[%emt 0:00:00]} cxd4 {[%emt 0:00:00]} 4. Nxd4 {[%emt 0:00:00]}
Nf6 {[%emt 0:00:00]} 5. Nc3 {[%emt 0:00:00]} a6 {[%emt 0:00:00]} 6. Be3 {
[%emt 0:00:00]} e5 {[%emt 0:00:00]} 7. Nf3 {[%emt 0:00:00]} Be7 {[%emt 0:00:00]
} 8. Bc4 {[%emt 0:00:00]} O-O {[%emt 0:00:00]} 9. O-O {[%emt 0:00:00]} Be6 {
[%emt 0:00:00]} 10. Bxe6 {[%emt 0:00:00]} fxe6 {[%emt 0:00:00]} 11. Na4 {
[%emt 0:00:00]} Ng4 {[%emt 0:00:00]} 12. Qd3 {[%emt 0:00:00]} b5 {[%emt 0:00:
00]} 13. Nb6 {[%emt 0:00:00]} Nxe3 {[%emt 0:00:00]} 14. Qxe3 {[%emt 0:00:00]}
Rxf3 {[%emt 0:00:00]} 15. gxf3 {[%emt 0:00:00]} Bg5 {[%emt 0:00:00]} 16. f4 {
[%emt 0:00:00]} Bxf4 {[%emt 0:00:00]} 17. Qh3 {[%emt 0:00:00]} Qxb6 {[%emt 0:
00:00]} 18. Qxe6+ {[%emt 0:00:00]} Kf8 {[%emt 0:00:00]} 19. Rad1 {[%emt 0:00:
00]} Qd8 {[%emt 0:00:00]} 20. Rxd6 {[%emt 0:00:00]} Qg5+ {[%emt 0:00:00]} 21.
Kh1 {[%emt 0:00:00]} Qh4 {[%emt 0:00:00]} 22. Qf5+ {[%emt 0:00:00]} Kg8 {
[%emt 0:00:00]} 23. h3 {[%emt 0:00:00]} Ra7 {[%emt 0:00:00]} 24. Rfd1 {[%emt 0:
00:00]} Bg5 {[%emt 0:00:00]} 25. Re6 {[%emt 0:00:00]} 1-0

[Event "Gibraltar Masters 18th"]
[Site "Gibraltar"]
[Date "2020.01.28"]
[Round "8.42"]
[White "Sankalp, Gupta"]
[Black "Hjartarson, Johann"]
[Result "1/2-1/2"]
[ECO "B04"]
[WhiteElo "2400"]
[BlackElo "2524"]
[PlyCount "68"]
[EventDate "2020.01.21"]
[EventType "swiss"]
[EventRounds "10"]
[EventCountry "GGB"]
[SourceTitle "BritBase"]
[Source "John Saunders"]
[SourceDate "2021.06.05"]
[SourceVersion "1"]
[SourceVersionDate "2021.06.05"]
[SourceQuality "1"]
[TimeControl "40/100:0"]
[WhiteClock "0:28:52"]
[BlackClock "0:49:04"]

1. e4 {[%emt 0:00:00]} Nf6 {[%emt 0:00:00]} 2. e5 {[%emt 0:00:00]} Nd5 {
[%emt 0:00:00]} 3. d4 {[%emt 0:00:00]} d6 {[%emt 0:00:00]} 4. c4 {[%emt 0:00:
00]} Nb6 {[%emt 0:00:00]} 5. exd6 {[%emt 0:00:00]} cxd6 {[%emt 0:00:00]} 6. Nf3
{[%emt 0:00:00]} g6 {[%emt 0:00:00]} 7. Nc3 {[%emt 0:00:00]} Bg7 {[%emt 0:00:
00]} 8. h3 {[%emt 0:00:00]} O-O {[%emt 0:00:00]} 9. Be2 {[%emt 0:00:00]} Nc6 {
[%emt 0:00:00]} 10. O-O {[%emt 0:00:00]} Bf5 {[%emt 0:00:00]} 11. Be3 {[%emt 0:
00:00]} d5 {[%emt 0:00:00]} 12. c5 {[%emt 0:00:00]} Nc4 {[%emt 0:00:00]} 13.
Bxc4 {[%emt 0:00:00]} dxc4 {[%emt 0:00:00]} 14. Qa4 {[%emt 0:00:00]} e5 {
[%emt 0:00:00]} 15. Rfd1 {[%emt 0:00:00]} exd4 {[%emt 0:00:00]} 16. Nxd4 {
[%emt 0:00:00]} Nxd4 {[%emt 0:00:00]} 17. Bxd4 {[%emt 0:00:00]} Bxd4 {[%emt 0:
00:00]} 18. Qxc4 {[%emt 0:00:00]} Bxf2+ {[%emt 0:00:00]} 19. Kxf2 {[%emt 0:00:
00]} Qg5 {[%emt 0:00:00]} 20. h4 {[%emt 0:00:00]} Qf6 {[%emt 0:00:00]} 21. Qd4
{[%emt 0:00:00]} Qxd4+ {[%emt 0:00:00]} 22. Rxd4 {[%emt 0:00:00]} Kg7 {[%emt 0:
00:00]} 23. Nb5 {[%emt 0:00:00]} Rfc8 {[%emt 0:00:00]} 24. Rc1 {[%emt 0:00:00]}
Be6 {[%emt 0:00:00]} 25. Nd6 {[%emt 0:00:00]} Rc6 {[%emt 0:00:00]} 26. Nxb7 {
[%emt 0:00:00]} Rb8 {[%emt 0:00:00]} 27. Nd8 {[%emt 0:00:00]} Rxb2+ {[%emt 0:
00:00]} 28. Kf3 {[%emt 0:00:00]} Rc7 {[%emt 0:00:00]} 29. Nxe6+ {[%emt 0:00:00]
} fxe6 {[%emt 0:00:00]} 30. Ra4 {[%emt 0:00:00]} Kf6 {[%emt 0:00:00]} 31. Ra6 {
[%emt 0:00:00]} Rd2 {[%emt 0:00:00]} 32. Rc3 {[%emt 0:00:00]} h5 {[%emt 0:00:
00]} 33. Re3 {[%emt 0:00:00]} Re7 {[%emt 0:00:00]} 34. Rea3 {[%emt 0:00:00]}
Rc7 {[%emt 0:00:00]} 1/2-1/2

[Event "Gibraltar Masters 18th"]
[Site "Gibraltar"]
[Date "2020.01.28"]
[Round "8.43"]
[White "Krysa, Leandro"]
[Black "Low, Zhen Yu Cyrus"]
[Result "1/2-1/2"]
[ECO "A16"]
[WhiteElo "2522"]
[BlackElo "2415"]
[PlyCount "61"]
[EventDate "2020.01.21"]
[EventType "swiss"]
[EventRounds "10"]
[EventCountry "GGB"]
[SourceTitle "BritBase"]
[Source "John Saunders"]
[SourceDate "2021.06.05"]
[SourceVersion "1"]
[SourceVersionDate "2021.06.05"]
[SourceQuality "1"]
[TimeControl "40/100:0"]
[WhiteClock "0:26:43"]
[BlackClock "0:33:38"]

1. c4 {[%emt 0:00:00]} Nf6 {[%emt 0:00:00]} 2. Nc3 {[%emt 0:00:00]} d5 {
[%emt 0:00:00]} 3. cxd5 {[%emt 0:00:00]} Nxd5 {[%emt 0:00:00]} 4. g3 {[%emt 0:
00:00]} g6 {[%emt 0:00:00]} 5. Bg2 {[%emt 0:00:00]} Nxc3 {[%emt 0:00:00]} 6.
bxc3 {[%emt 0:00:00]} Bg7 {[%emt 0:00:00]} 7. h4 {[%emt 0:00:00]} h6 {[%emt 0:
00:00]} 8. Rb1 {[%emt 0:00:00]} O-O {[%emt 0:00:00]} 9. Rxb7 {[%emt 0:00:00]}
Bxb7 {[%emt 0:00:00]} 10. Bxb7 {[%emt 0:00:00]} Nd7 {[%emt 0:00:00]} 11. Bxa8 {
[%emt 0:00:00]} Qxa8 {[%emt 0:00:00]} 12. Nf3 {[%emt 0:00:00]} Qc6 {[%emt 0:00:
00]} 13. O-O {[%emt 0:00:00]} Qc4 {[%emt 0:00:00]} 14. a3 {[%emt 0:00:00]} a5 {
[%emt 0:00:00]} 15. d3 {[%emt 0:00:00]} Qxc3 {[%emt 0:00:00]} 16. Qd2 {[%emt 0:
00:00]} Qc5 {[%emt 0:00:00]} 17. Bb2 {[%emt 0:00:00]} Rb8 {[%emt 0:00:00]} 18.
Bxg7 {[%emt 0:00:00]} Kxg7 {[%emt 0:00:00]} 19. Rc1 {[%emt 0:00:00]} Qxa3 {
[%emt 0:00:00]} 20. h5 {[%emt 0:00:00]} Rb2 {[%emt 0:00:00]} 21. Qf4 {[%emt 0:
00:00]} Qd6 {[%emt 0:00:00]} 22. Rxc7 {[%emt 0:00:00]} Qxf4 {[%emt 0:00:00]}
23. gxf4 {[%emt 0:00:00]} Nf6 {[%emt 0:00:00]} 24. e3 {[%emt 0:00:00]} a4 {
[%emt 0:00:00]} 25. Ra7 {[%emt 0:00:00]} Nxh5 {[%emt 0:00:00]} 26. Rxa4 {
[%emt 0:00:00]} Rb7 {[%emt 0:00:00]} 27. Ne5 {[%emt 0:00:00]} Nf6 {[%emt 0:00:
00]} 28. Kg2 {[%emt 0:00:00]} Nd7 {[%emt 0:00:00]} 29. d4 {[%emt 0:00:00]} g5 {
[%emt 0:00:00]} 30. Nxd7 {[%emt 0:00:00]} Rxd7 {[%emt 0:00:00]} 31. fxg5 {
[%emt 0:00:00]} 1/2-1/2

[Event "Gibraltar Masters 18th"]
[Site "Gibraltar"]
[Date "2020.01.28"]
[Round "8.44"]
[White "Soumya, Swaminathan"]
[Black "Flom, Gabriel"]
[Result "0-1"]
[ECO "B12"]
[WhiteElo "2384"]
[BlackElo "2510"]
[PlyCount "76"]
[EventDate "2020.01.21"]
[EventType "swiss"]
[EventRounds "10"]
[EventCountry "GGB"]
[SourceTitle "BritBase"]
[Source "John Saunders"]
[SourceDate "2021.06.05"]
[SourceVersion "1"]
[SourceVersionDate "2021.06.05"]
[SourceQuality "1"]
[TimeControl "40/100:0"]
[WhiteClock "0:01:13"]
[BlackClock "0:48:41"]

1. e4 {[%emt 0:00:00]} c6 {[%emt 0:00:00]} 2. d4 {[%emt 0:00:00]} d5 {[%emt 0:
00:00]} 3. e5 {[%emt 0:00:00]} Bf5 {[%emt 0:00:00]} 4. h4 {[%emt 0:00:00]} h5 {
[%emt 0:00:00]} 5. c4 {[%emt 0:00:00]} e6 {[%emt 0:00:00]} 6. Nc3 {[%emt 0:00:
00]} Ne7 {[%emt 0:00:00]} 7. Nge2 {[%emt 0:00:00]} Nd7 {[%emt 0:00:00]} 8. Ng3
{[%emt 0:00:00]} Bg6 {[%emt 0:00:00]} 9. Bg5 {[%emt 0:00:00]} Qb6 {[%emt 0:00:
00]} 10. Rc1 {[%emt 0:00:00]} Qxb2 {[%emt 0:00:00]} 11. Bd3 {[%emt 0:00:00]}
dxc4 {[%emt 0:00:00]} 12. Bxc4 {[%emt 0:00:00]} Nb6 {[%emt 0:00:00]} 13. Bd3 {
[%emt 0:00:00]} Bxd3 {[%emt 0:00:00]} 14. Qxd3 {[%emt 0:00:00]} Qa3 {[%emt 0:
00:00]} 15. O-O {[%emt 0:00:00]} Nbd5 {[%emt 0:00:00]} 16. Nge4 {[%emt 0:00:00]
} Nf5 {[%emt 0:00:00]} 17. Rb1 {[%emt 0:00:00]} Qa6 {[%emt 0:00:00]} 18. Qxa6 {
[%emt 0:00:00]} bxa6 {[%emt 0:00:00]} 19. Ne2 {[%emt 0:00:00]} Be7 {[%emt 0:00:
00]} 20. Bxe7 {[%emt 0:00:00]} Ndxe7 {[%emt 0:00:00]} 21. Rb7 {[%emt 0:00:00]}
O-O {[%emt 0:00:00]} 22. Rfb1 {[%emt 0:00:00]} Ng6 {[%emt 0:00:00]} 23. g3 {
[%emt 0:00:00]} Rfd8 {[%emt 0:00:00]} 24. R1b4 {[%emt 0:00:00]} a5 {[%emt 0:00:
00]} 25. Ra4 {[%emt 0:00:00]} Rd5 {[%emt 0:00:00]} 26. N4c3 {[%emt 0:00:00]}
Rdd8 {[%emt 0:00:00]} 27. f4 {[%emt 0:00:00]} Rdb8 {[%emt 0:00:00]} 28. Rxb8+ {
[%emt 0:00:00]} Rxb8 {[%emt 0:00:00]} 29. Rxa5 {[%emt 0:00:00]} Rb7 {[%emt 0:
00:00]} 30. Kf2 {[%emt 0:00:00]} Nge7 {[%emt 0:00:00]} 31. Ra6 {[%emt 0:00:00]}
Nd5 {[%emt 0:00:00]} 32. Rxc6 {[%emt 0:00:00]} Rb2 {[%emt 0:00:00]} 33. Rc8+ {
[%emt 0:00:39]} Kh7 {[%emt 0:00:00]} 34. Nxd5 {[%emt 0:00:00]} exd5 {[%emt 0:
00:00]} 35. Kf3 {[%emt 0:00:00]} Rxa2 {[%emt 0:00:00]} 36. Rc7 {[%emt 0:00:14]}
Kg6 {[%emt 0:00:00]} 37. Rc6+ {[%emt 0:00:00]} f6 {[%emt 0:00:00]} 38. e6 {
[%emt 0:00:00]} Rxe2 {[%emt 0:00:00]} 0-1